fUST/lending_fUST_20250918
["ID","MTS","AMOUNT","RATE_DAILY","PERIOD"]
[385932568,1758137445925,-865.35,0.00026284,3]
[385932569,1758137445934,-1241.0,0.00026284,3]
[385932570,1758137445944,-3262.47,0.00026284,4]
[385932571,1758137445953,-3009.59,0.00026284,3]
[385932572,1758137445963,-2884.19,0.00026286,3]
[385932574,1758137445973,-1481.95,0.00026293,3]
[385932575,1758137445982,-595.36,0.00026294,3]
[385932576,1758137445991,-480.0,0.00026294,3]
[385932577,1758137446000,-153.07344,0.00026295,7]
[385932578,1758137446010,-480.0,0.00026297,3]
[385932579,1758137446019,-1199.67,0.00026297,3]
[385932580,1758137446029,-500.0,0.00026302,2]
[385932581,1758137446038,-500.0,0.00026302,2]
[385932582,1758137446047,-168.0,0.00026307,2]
[385932583,1758137446057,-940.9019989,0.00026383,2]
[385932584,1758137446066,-234.15,0.00026398,3]
[385932585,1758137446075,-704.33,0.00026398,3]
[385932586,1758137446084,-663.08,0.00026398,3]
[385932587,1758137446094,-216.0,0.00026413,2]
[385932588,1758137446103,-204.1867647,0.00026416,2]
[385932589,1758137446112,-40647.46603634,0.00026444,2]
[385932590,1758137446123,-151.0,0.00026444,5]
[385932591,1758137446133,-150.0,0.00026473,2]
[385932592,1758137446142,-150.0,0.00026473,2]
[385932593,1758137446152,-150.0,0.00026473,2]
[385932594,1758137446161,-204.0,0.000265,2]
[385932595,1758137446171,-1372.54150745,0.00026516,2]
[385932596,1758137446180,-2000.0,0.00026516,2]
[385932598,1758137446189,-2000.0,0.00026516,2]
[385932600,1758137446198,-2000.0,0.00026516,2]
[385932602,1758137446207,-168.0,0.00026548,2]
[385932603,1758137446216,-845.95,0.00026557,3]
[385932604,1758137446226,-480.0,0.00026557,3]
[385932605,1758137446235,-538.4,0.00026557,3]
[385932606,1758137446245,-789.77,0.00026557,3]
[385932607,1758137446254,-630.89,0.00026557,3]
[385932608,1758137446263,-480.0,0.00026557,3]
[385932610,1758137446273,-480.0,0.00026557,3]
[385932613,1758137446283,-480.0,0.00026558,3]
[385932614,1758137446292,-1103.56,0.00026558,3]
[385932616,1758137446301,-480.0,0.00026558,3]
[385932618,1758137446311,-1823.2,0.00026558,3]
[385932621,1758137446320,-574.0,0.00026558,3]
[385932622,1758137446330,-572.52,0.00026558,3]
[385932624,1758137446340,-679.97,0.00026558,3]
[385932626,1758137446349,-480.0,0.00026558,3]
[385932628,1758137446359,-480.0,0.00026558,3]
[385932630,1758137446368,-865.35,0.00026558,3]
[385932632,1758137446377,-1241.0,0.00026558,3]
[385932634,1758137446386,-3009.59,0.00026558,3]
[385932636,1758137446395,-2884.19,0.0002656,3]
[385932638,1758137446407,-168.0,0.00026561,2]
[385932640,1758137446416,-1481.95,0.00026567,3]
[385932642,1758137446425,-595.36,0.00026568,3]
[385932644,1758137446435,-480.0,0.00026568,3]
[385932646,1758137446444,-480.0,0.00026571,3]
[385932648,1758137446453,-1199.67,0.00026571,3]
[385932650,1758137446462,-500.0,0.00026576,2]
[385932652,1758137446472,-500.0,0.00026576,2]
[385932654,1758137446481,-168.0,0.00026587,2]
[385932656,1758137446490,-1333.0,0.00026597,2]
[385932658,1758137446499,-1000.0,0.000266,5]
[385932660,1758137446509,-216.0,0.00026636,2]
[385932662,1758137446519,-704.33,0.00026672,3]
[385932664,1758137446528,-663.08,0.00026672,3]
[385932666,1758137446537,-560.0,0.00026708,2]
[385932668,1758137446546,-160.0,0.00026722,6]
[385932670,1758137446555,-253.23475905,0.00026722,5]
[385932672,1758137446564,-2074.31,0.00026732,2]
[385932674,1758137446573,-168.0,0.00026781,2]
[385932676,1758137446582,-1075.199999,0.000268,2]
[385932678,1758137446591,-1360.53070873,0.00026811,7]
[385932680,1758137446600,-845.95,0.00026831,3]
[385932682,1758137446609,-480.0,0.00026831,3]
[385932684,1758137446619,-538.4,0.00026831,3]
[385932686,1758137446629,-789.77,0.00026831,3]
[385932688,1758137446638,-630.89,0.00026831,3]
[385932690,1758137446647,-480.0,0.00026831,3]
[385932692,1758137446656,-480.0,0.00026831,3]
[385932694,1758137446665,-480.0,0.00026832,3]
[385932696,1758137446674,-1103.56,0.00026832,3]
[385932698,1758137446683,-480.0,0.00026832,3]
[385932700,1758137446692,-1823.2,0.00026832,3]
[385932702,1758137446701,-574.0,0.00026832,3]
[385932704,1758137446711,-572.52,0.00026832,3]
[385932706,1758137446721,-679.97,0.00026832,3]
[385932708,1758137446730,-480.0,0.00026832,3]
[385932710,1758137446740,-480.0,0.00026832,3]
[385932713,1758137446749,-865.35,0.00026832,3]
[385932716,1758137446758,-1241.0,0.00026832,3]
[385932718,1758137446767,-3009.59,0.00026832,3]
[385932720,1758137446776,-2884.19,0.00026833,3]
[385932722,1758137446785,-1481.95,0.00026841,3]
[385932724,1758137446794,-595.36,0.00026842,3]
[385932726,1758137446805,-480.0,0.00026842,3]
[385932728,1758137446817,-480.0,0.00026845,3]
[385932730,1758137446826,-1199.67,0.00026845,3]
[385932732,1758137446836,-500.0,0.0002685,2]
[385932734,1758137446845,-500.0,0.0002685,2]
[385932736,1758137446854,-201.0,0.0002687,17]
[385932738,1758137446864,-371.0,0.00026879,2]
[385932739,1758137446874,-15588.46,0.000269,2]
[385932741,1758137446883,-20029.28260325,0.000269,2]
[385932743,1758137446893,-13458.14510507,0.000269,2]
[385932745,1758137446903,-168.0,0.00026905,2]
[385932748,1758137446913,-165.72,0.0002691,7]
[385932749,1758137446924,-704.33,0.00026946,3]
[385932751,1758137446933,-663.08,0.00026946,3]
[385932753,1758137446942,-168.0,0.00026987,2]
[385932755,1758137446951,-78214.10390839,0.00027,14]
[385932764,1758137447021,-2372.31840811,0.00027,14]
[385932766,1758137447032,-554.19051158,0.00027,14]
[385932770,1758137447110,-480.0,0.00023269,3]
[385932772,1758137447119,-500.0,0.00023269,2]
[385932774,1758137447129,-480.0,0.00023384,3]
[385932776,1758137447139,-532.18233868,0.00023454,2]
[385932778,1758137447149,-480.0,0.00023658,3]
[385932780,1758137447158,-480.0,0.00023932,3]
[385932790,1758137447251,-8582.97,0.00024653,3]
[385932792,1758137447261,-8582.97,0.00024927,3]
[385932794,1758137447271,-8582.97,0.00025201,3]
[385932796,1758137447280,-8582.97,0.00025475,3]
[385932798,1758137447289,-27594.53939449,0.00027,14]
[385932800,1758137447298,-31172.80659962,0.00027,14]
[385932802,1758137447309,-494.0,0.00027,14]
[385932815,1758137447421,-532.18233864,0.00023794,2]
[385932817,1758137447430,-532.18233864,0.00024134,2]
[385932819,1758137447439,-480.0,0.00024206,3]
[385932821,1758137447449,-480.0,0.0002448,3]
[385932823,1758137447458,-480.0,0.00024754,3]
[385932825,1758137447468,-480.0,0.00025028,3]
[385932827,1758137447477,-480.0,0.00025302,3]
[385932829,1758137447486,-407.59947692,0.00025749,3]
[385932832,1758137447501,-177.12,0.00025576,3]
[385932834,1758137447510,-8175.37052308,0.00025749,3]
[385932836,1758137447519,-8582.97,0.00026023,3]
[385932838,1758137447528,-8582.97,0.00026297,3]
[385932840,1758137447538,-8582.97,0.00026571,3]
[385932842,1758137447547,-8582.97,0.00026845,3]
[385932844,1758137447556,-14270.06052514,0.00027,14]
[385932846,1758137447567,-3815.10831611,0.00027,14]
[385932851,1758137447603,-480.0,0.00023269,3]
[385932853,1758137447612,-392.67,0.00024473,2]
[385932855,1758137447624,-139.51233864,0.00024473,2]
[385932857,1758137447634,-5674.54487294,0.00027,14]
[385932859,1758137447645,-2453.92159866,0.00027,14]
[385932861,1758137447654,-5988.7330797,0.00027,7]
[385932862,1758137447663,-39309.70547135,0.00027,2]
[385932864,1758137447674,-1995.912689,0.00027,2]
[385932866,1758137447683,-300.0,0.00027021,2]
[385932869,1758137447693,-250.0,0.00027021,2]
[385932871,1758137447703,-168.0,0.00027034,2]
[385932873,1758137447713,-156.57,0.00027059,2]
[385932875,1758137447724,-2500.0,0.00027064,2]
[385932877,1758137447734,-2500.0,0.00027064,2]
[385932878,1758137447744,-2500.0,0.00027064,2]
[385932881,1758137447755,-2034.55,0.000271,7]
[385932883,1758137447766,-910.6,0.000271,7]
[385932884,1758137447777,-845.95,0.00027105,3]
[385932887,1758137447788,-480.0,0.00027105,3]
[385932889,1758137447797,-538.4,0.00027105,3]
[385932890,1758137447807,-789.77,0.00027105,3]
[385932892,1758137447819,-630.89,0.00027105,3]
[385932894,1758137447828,-480.0,0.00027105,3]
[385932897,1758137447838,-480.0,0.00027105,3]
[385932899,1758137447848,-480.0,0.00027106,3]
[385932901,1758137447857,-1103.56,0.00027106,3]
[385932903,1758137447866,-1823.2,0.00027106,3]
[385932905,1758137447876,-574.0,0.00027106,3]
[385932906,1758137447885,-572.52,0.00027106,3]
[385932908,1758137447894,-679.97,0.00027106,3]
[385932910,1758137447903,-480.0,0.00027106,3]
[385932912,1758137447912,-480.0,0.00027106,3]
[385932914,1758137447922,-865.35,0.00027106,3]
[385932916,1758137447931,-1241.0,0.00027106,3]
[385932918,1758137447940,-3009.59,0.00027106,3]
[385932920,1758137447950,-2884.19,0.00027107,3]
[385932922,1758137447960,-1481.95,0.00027115,3]
[385932924,1758137447969,-595.36,0.00027116,3]
[385932926,1758137447978,-480.0,0.00027116,3]
[385932928,1758137447987,-480.0,0.00027119,3]
[385932930,1758137447996,-1199.67,0.00027119,3]
[385932932,1758137448005,-8582.97,0.00027119,3]
[385932934,1758137448015,-1002.0915137,0.00027123,3]
[385932936,1758137448024,-500.0,0.00027124,2]
[385932938,1758137448034,-500.0,0.00027124,2]
[385932940,1758137448044,-600.58479224,0.0002716,16]
[385932942,1758137448053,-1002.11972194,0.00027174,2]
[385932944,1758137448063,-700.0,0.00027178,2]
[385932946,1758137448072,-704.33,0.0002722,3]
[385932948,1758137448082,-663.08,0.0002722,3]
[385932950,1758137448091,-660.0,0.00027256,2]
[385932952,1758137448100,-1122.47,0.000273,7]
[385932954,1758137448109,-155.4969844,0.00027323,2]
[385932956,1758137448118,-845.95,0.00027379,3]
[385932958,1758137448127,-390.43817202,0.00027379,3]
[385932961,1758137448137,-538.4,0.00027379,3]
[385932963,1758137448147,-789.77,0.00027379,3]
[385932965,1758137448156,-630.89,0.00027379,3]
[385932967,1758137448165,-491.81,0.00027379,3]
[385932968,1758137448174,-480.0,0.00027379,3]
[385932970,1758137448184,-480.0,0.0002738,3]
[385932972,1758137448194,-1103.56,0.0002738,3]
[385932974,1758137448204,-1823.2,0.0002738,3]
[385932976,1758137448213,-574.0,0.0002738,3]
[385932978,1758137448222,-572.52,0.0002738,3]
[385932980,1758137448231,-679.97,0.0002738,3]
[385932982,1758137448241,-480.0,0.0002738,3]
[385932984,1758137448250,-480.0,0.0002738,3]
[385932986,1758137448260,-865.35,0.0002738,3]
[385932989,1758137448270,-1241.0,0.0002738,3]
[385932991,1758137448279,-3009.59,0.0002738,3]
[385932993,1758137448288,-2884.19,0.00027381,3]
[385932994,1758137448297,-1481.95,0.00027389,3]
[385932996,1758137448307,-595.36,0.0002739,3]
[385932998,1758137448316,-480.0,0.0002739,3]
[385933001,1758137448326,-197.595091,0.0002739,2]
[385933003,1758137448335,-150.0,0.0002739,2]
[385933004,1758137448345,-480.0,0.00027393,3]
[385933006,1758137448354,-1199.67,0.00027393,3]
[385933008,1758137448363,-8582.97,0.00027393,3]
[385933010,1758137448372,-220.34584037,0.00027397,2]
[385933012,1758137448381,-166.22110977,0.00027397,2]
[385933014,1758137448390,-1500.0,0.00027397,2]
[385933016,1758137448400,-500.0,0.00027398,2]
[385933019,1758137448410,-500.0,0.00027398,2]
[385933020,1758137448420,-587.0,0.00027405,2]
[385933022,1758137448430,-587.0,0.00027405,2]
[385933024,1758137448439,-704.33,0.00027494,3]
[385933026,1758137448448,-663.08,0.00027494,3]
[385933028,1758137448458,-45316.66507713,0.000275,2]
[385933030,1758137448467,-1000.0,0.000275,2]
[385933032,1758137448476,-153.81,0.00027564,15]
[385933034,1758137448485,-450.0,0.00027568,5]
[385933036,1758137448494,-350.0,0.00027568,5]
[385933038,1758137448503,-5046.94408871,0.0002758,16]
[385933040,1758137448513,-156.74,0.00027584,15]
[385933042,1758137448522,-151.22,0.00027584,15]
[385933044,1758137448531,-3000.0,0.00027612,5]
[385933046,1758137448540,-3000.0,0.00027612,5]
[385933048,1758137448549,-3000.0,0.00027612,5]
[385933050,1758137448558,-300.0,0.00027639,5]
[385933052,1758137448568,-845.95,0.00027653,3]
[385933054,1758137448577,-538.4,0.00027653,3]
[385933056,1758137448586,-789.77,0.00027653,3]
[385933058,1758137448595,-630.89,0.00027653,3]
[385933060,1758137448605,-480.0,0.00027653,3]
[385933063,1758137448615,-480.0,0.00027654,3]
[385933064,1758137448624,-1103.56,0.00027654,3]
[385933066,1758137448633,-1823.2,0.00027654,3]
[385933068,1758137448642,-574.0,0.00027654,3]
[385933070,1758137448651,-572.52,0.00027654,3]
[385933072,1758137448660,-679.97,0.00027654,3]
[385933074,1758137448670,-393.21,0.00027654,3]
[385933076,1758137448679,-480.0,0.00027654,3]
[385933078,1758137448689,-865.35,0.00027654,3]
[385933080,1758137448698,-1241.0,0.00027654,3]
[385933082,1758137448707,-3009.59,0.00027654,3]
[385933084,1758137448716,-1481.95,0.00027663,3]
[385933086,1758137448725,-153.81,0.00027664,15]
[385933088,1758137448735,-595.36,0.00027664,3]
[385933090,1758137448744,-150.61,0.00027664,3]
[385933092,1758137448753,-480.0,0.00027667,3]
[385933094,1758137448764,-1199.67,0.00027667,3]
[385933096,1758137448773,-6987.44103245,0.00027667,3]
[385933099,1758137448786,-1595.52896755,0.00027667,3]
[385933101,1758137448795,-500.0,0.00027672,2]
[385933103,1758137448804,-500.0,0.00027672,2]
[385933105,1758137448815,-156.74,0.00027684,15]
[385933107,1758137448824,-151.22,0.00027684,15]
[385933109,1758137448833,-410.0,0.00027731,2]
[385933111,1758137448842,-165.72,0.00027756,7]
[385933113,1758137448851,-153.81,0.00027764,15]
[385933115,1758137448862,-704.33,0.00027768,3]
[385933117,1758137448871,-663.08,0.00027768,3]
[385933119,1758137448880,-1925.858473,0.0002778,5]
[385933120,1758137448891,-156.74,0.00027784,15]
[385933122,1758137448900,-151.22,0.00027784,15]
[385933125,1758137448909,-1000.0,0.000278,5]
[385933127,1758137448920,-760.0,0.00027804,2]
[385933128,1758137448929,-1000.0,0.0002782,5]
[385933130,1758137448938,-1000.0,0.0002784,5]
[385933132,1758137448947,-1000.0,0.0002786,5]
[385933134,1758137448956,-153.81,0.00027864,15]
[385933136,1758137448966,-1000.0,0.0002788,5]
[385933138,1758137448975,-156.74,0.00027884,15]
[385933141,1758137448985,-151.22,0.00027884,15]
[385933143,1758137448995,-1000.0,0.000279,5]
[385933145,1758137449005,-1000.0,0.0002792,5]
[385933147,1758137449015,-845.95,0.00027927,3]
[385933149,1758137449024,-538.4,0.00027927,3]
[385933151,1758137449033,-789.77,0.00027927,3]
[385933153,1758137449042,-630.89,0.00027927,3]
[385933155,1758137449051,-480.0,0.00027927,3]
[385933157,1758137449061,-480.0,0.00027928,3]
[385933159,1758137449071,-1103.56,0.00027928,3]
[385933161,1758137449080,-1823.2,0.00027928,3]
[385933163,1758137449089,-574.0,0.00027928,3]
[385933165,1758137449099,-572.52,0.00027928,3]
[385933167,1758137449109,-679.97,0.00027928,3]
[385933169,1758137449118,-480.0,0.00027928,3]
[385933170,1758137449127,-865.35,0.00027928,3]
[385933172,1758137449136,-1241.0,0.00027928,3]
[385933174,1758137449146,-3009.59,0.00027928,3]
[385933176,1758137449155,-1481.95,0.00027937,3]
[385933178,1758137449164,-595.36,0.00027938,3]
[385933180,1758137449177,-1000.0,0.0002794,5]
[385933182,1758137449187,-480.0,0.00027941,3]
[385933184,1758137449196,-1199.67,0.00027941,3]
[385933186,1758137449206,-500.0,0.00027946,2]
[385933188,1758137449215,-500.0,0.00027946,2]
[385933190,1758137449225,-1000.0,0.0002796,5]
[385933192,1758137449234,-153.81,0.00027964,15]
[385933194,1758137449244,-1000.0,0.0002798,5]
[385933196,1758137449253,-1029.53779769,0.0002798,5]
[385933198,1758137449265,-124.77194831,0.0002798,5]
[385933200,1758137449274,-156.74,0.00027984,15]
[385933202,1758137449284,-151.22,0.00027984,15]
[385933204,1758137449294,-500.0,0.0002799,5]
[385933206,1758137449303,-499.999999,0.00028,2]
[385933208,1758137449312,-485.63691403,0.00028,10]
[385933210,1758137449323,-15.39807818,0.00028,10]
[385933212,1758137449333,-1000.0,0.00028,5]
[385933214,1758137449342,-1000.0,0.00028,5]
[385933216,1758137449351,-500.0,0.00028,10]
[385933218,1758137449361,-328.0,0.00028,7]
[385933228,1758137449440,-328.0,0.00028,7]
[385933231,1758137449464,-328.0,0.00028,7]
[385933233,1758137449474,-328.0,0.00028,7]
[385933235,1758137449485,-344.13518701,0.00028,7]
[385933237,1758137449495,-353.934511,0.00028,10]
[385933239,1758137449505,-192.367043,0.00028,2]
[385933241,1758137449515,-650.0,0.00028,2]
[385933243,1758137449524,-295.267,0.00028,2]
[385933245,1758137449533,-1000.0,0.00028,2]
[385933247,1758137449543,-500.0,0.00028,30]
[385933249,1758137449553,-2278.01818081,0.00028001,120]
[385933251,1758137449565,-854.95877278,0.00028001,120]
[385933253,1758137449578,-619.90353251,0.00028001,120]
[385937000,1758137490535,150.0,0.00021916,2]
[385937001,1758137490965,150.0,0.0002296,2]
[385937003,1758137558973,150.0,0.00021919,2]
[385937004,1758137559393,150.0,0.00022963,2]
[385937005,1758137624070,150.0,0.00020908,2]
[385937006,1758137624482,150.0,0.00021904,2]
[385937007,1758137642400,202.0,0.00020959,3]
[385937008,1758137656905,172.80948068,0.00023169,2]
[385937009,1758137717535,947.1758971,0.00022368,2]
[385937010,1758137719615,666.0,0.00022368,2]
[385937011,1758137722536,1501.85287371,0.00022546,2]
[385937012,1758137722558,2976.71760369,0.00022546,2]
[385937029,1758137771786,7023.29239631,0.00022366,2]
[385937030,1758137771809,1773.25319669,0.00022366,2]
[385937031,1758137819622,150.0,0.00021805,2]
[385937032,1758137904752,706.107347,0.00022317,2]
[385937035,1758137949363,1864.9182621,0.0002317,2]
[385937036,1758138011984,150.0,0.00020904,2]
[385937037,1758138021910,5355.73119421,0.00022301,2]
[385937038,1758138021934,10000.01,0.00022301,2]
[385937039,1758138021956,10000.01,0.00022301,2]
[385937040,1758138021977,4644.24870579,0.00022301,2]
[385937041,1758138125895,5355.76129421,0.0002227,2]
[385937042,1758138125916,4644.23870579,0.0002227,2]
[385937043,1758138458772,2309.57978958,0.00023168,2]
[385937044,1758138460314,150.0,0.00021745,2]
[385937045,1758138493957,1122.1387018,0.00022268,2]
[385937588,1758138638690,-500.0,0.00023265,2]
[385937590,1758138638700,-200.96983016,0.00023265,2]
[385937592,1758138638710,-500.0,0.00023265,2]
[385937594,1758138638719,-500.0,0.00023265,2]
[385937596,1758138638728,-533.62524666,0.00023265,2]
[385937598,1758138638739,-574.55824367,0.00023265,2]
[385937600,1758138638749,-500.0,0.00023265,2]
[385937602,1758138638758,-500.0,0.00023265,2]
[385937604,1758138638767,-500.0,0.00023265,2]
[385937606,1758138638777,-460.07730068,0.00023265,2]
[385937607,1758138638786,-500.0,0.00023265,2]
[385937609,1758138638795,-500.0,0.00023265,2]
[385937611,1758138638804,-300.0,0.00023265,2]
[385937612,1758138638813,-300.0,0.00023265,2]
[385937613,1758138638823,-1000.44019369,0.00023266,2]
[385937615,1758138638833,-50000.0,0.00023266,2]
[385937617,1758138638842,-480.0,0.00023266,3]
[385937619,1758138638851,-480.0,0.00023266,3]
[385937621,1758138638861,-480.0,0.00023266,3]
[385937623,1758138638870,-725.14,0.00023266,3]
[385937625,1758138638879,-480.51,0.00023267,3]
[385937627,1758138638888,-480.0,0.00023267,3]
[385937629,1758138638897,-480.0,0.00023267,3]
[385937631,1758138638907,-883.01,0.00023267,3]
[385937633,1758138638916,-480.0,0.00023267,3]
[385937635,1758138638925,-480.0,0.00023268,3]
[385937637,1758138638935,-480.0,0.00023268,3]
[385937639,1758138638944,-480.0,0.00023268,3]
[385937641,1758138638953,-480.0,0.00023268,3]
[385937643,1758138638962,-480.0,0.00023268,3]
[385937645,1758138638972,-480.0,0.00023268,3]
[385937647,1758138638982,-480.0,0.00023268,3]
[385937649,1758138638993,-480.0,0.00023268,3]
[385937651,1758138639002,-480.0,0.00023268,3]
[385937653,1758138639011,-480.0,0.00023268,3]
[385937655,1758138639021,-480.0,0.00023268,3]
[385937657,1758138639029,-480.0,0.00023268,3]
[385937659,1758138639039,-480.0,0.00023268,3]
[385937661,1758138639048,-480.0,0.00023268,3]
[385937663,1758138639057,-480.0,0.00023268,3]
[385937665,1758138639067,-480.0,0.00023268,3]
[385937667,1758138639077,-480.0,0.00023268,3]
[385937669,1758138639086,-480.0,0.00023268,3]
[385937671,1758138639095,-480.0,0.00023268,3]
[385937673,1758138639104,-480.0,0.00023268,3]
[385937675,1758138639114,-595.81,0.00023268,3]
[385937677,1758138639123,-480.0,0.00023268,3]
[385937679,1758138639133,-480.0,0.00023268,3]
[385937681,1758138639142,-480.0,0.00023268,3]
[385937683,1758138639151,-480.0,0.00023268,3]
[385937685,1758138639161,-480.0,0.00023268,3]
[385937687,1758138639170,-480.0,0.00023268,3]
[385937689,1758138639180,-480.0,0.00023268,3]
[385937691,1758138639189,-654.02,0.00023268,3]
[385937693,1758138639198,-542.09,0.00023268,3]
[385937695,1758138639207,-416.9,0.00023268,3]
[385937697,1758138639216,-480.0,0.00023268,3]
[385937698,1758138639227,-480.0,0.00023268,3]
[385937700,1758138639237,-480.0,0.00023268,3]
[385937703,1758138639246,-480.0,0.00023268,3]
[385937705,1758138639256,-480.0,0.00023268,3]
[385937707,1758138639266,-480.0,0.00023268,3]
[385937709,1758138639276,-480.0,0.00023268,3]
[385937711,1758138639285,-581.25,0.00023268,3]
[385937713,1758138639294,-480.0,0.00023268,3]
[385937715,1758138639304,-480.0,0.00023268,3]
[385937717,1758138639313,-480.0,0.00023268,3]
[385937719,1758138639323,-512.89,0.00023268,3]
[385937721,1758138639335,-1372.71,0.00023268,3]
[385937723,1758138639344,-480.0,0.00023268,3]
[385937724,1758138639353,-480.0,0.00023268,3]
[385937727,1758138639363,-480.0,0.00023268,3]
[385937728,1758138639372,-480.0,0.00023268,3]
[385937730,1758138639382,-299.91549961,0.00023268,3]
[385937732,1758138639391,-500.0,0.00023268,3]
[385937734,1758138639401,-480.0,0.00023268,3]
[385937736,1758138639412,-480.0,0.00023268,3]
[385937738,1758138639421,-480.0,0.00023268,3]
[385937740,1758138639430,-480.0,0.00023268,3]
[385937743,1758138639440,-482.38,0.00023268,3]
[385937745,1758138639449,-480.0,0.00023268,3]
[385937746,1758138639458,-199.53,0.00023269,3]
[385937748,1758138639467,-480.0,0.00023269,3]
[385937750,1758138639476,-480.0,0.00023269,3]
[385937752,1758138639487,-480.0,0.00023269,3]
[385937754,1758138639497,-480.0,0.00023269,3]
[385937757,1758138639506,-480.0,0.00023269,3]
[385937758,1758138639516,-480.0,0.00023269,3]
[385937760,1758138639525,-480.0,0.00023269,3]
[385937762,1758138639534,-384.06,0.00023269,3]
[385937764,1758138639543,-159.65174092,0.00023269,3]
[385937766,1758138639553,-480.0,0.00023269,3]
[385937769,1758138639564,-480.0,0.00023269,3]
[385937771,1758138639573,-480.0,0.00023269,3]
[385937773,1758138639582,-480.0,0.00023269,3]
[385937775,1758138639591,-480.0,0.00023269,3]
[385937776,1758138639599,-480.0,0.00023269,3]
[385937778,1758138639608,-480.0,0.00023269,3]
[385937780,1758138639617,-480.0,0.00023269,3]
[385937782,1758138639626,-1060.69,0.00023269,3]
[385937784,1758138639635,-480.0,0.00023269,3]
[385937786,1758138639645,-480.0,0.00023269,3]
[385937789,1758138639655,-452.48,0.00023269,3]
[385937791,1758138639667,-480.0,0.00023269,3]
[385937793,1758138639677,-480.0,0.00023269,3]
[385937794,1758138639688,-480.0,0.00023269,3]
[385937796,1758138639697,-480.0,0.00023269,3]
[385937798,1758138639706,-480.0,0.00023269,3]
[385937800,1758138639715,-480.0,0.00023269,3]
[385937802,1758138639725,-480.0,0.00023269,3]
[385937805,1758138639736,-480.0,0.00023269,3]
[385937806,1758138639745,-480.0,0.00023269,3]
[385937808,1758138639754,-480.0,0.00023269,3]
[385937811,1758138639764,-480.0,0.00023269,3]
[385937813,1758138639773,-480.0,0.00023269,2]
[385937815,1758138639782,-480.0,0.00023269,3]
[385937816,1758138639791,-480.0,0.00023269,3]
[385937818,1758138639800,-480.0,0.00023269,3]
[385937820,1758138639810,-480.0,0.00023269,3]
[385937822,1758138639819,-480.0,0.00023269,3]
[385937824,1758138639828,-480.0,0.00023269,3]
[385937826,1758138639838,-395.94846288,0.00023269,3]
[385937828,1758138639847,-163.82,0.00023269,3]
[385937830,1758138639857,-480.0,0.00023269,3]
[385937832,1758138639866,-480.0,0.00023269,3]
[385937834,1758138639876,-480.0,0.00023269,3]
[385937836,1758138639885,-827.34,0.00023269,3]
[385937838,1758138639895,-480.0,0.00023269,3]
[385937840,1758138639905,-480.0,0.00023269,3]
[385937842,1758138639914,-480.0,0.00023269,3]
[385937844,1758138639923,-480.0,0.00023269,3]
[385937846,1758138639933,-480.0,0.00023269,3]
[385937848,1758138639942,-480.0,0.00023269,3]
[385937850,1758138639951,-480.0,0.00023269,3]